Cogmind - Beta 14 @@@ ROGUE MODE // 2024.08.12 @ 09:01:34 Player: 3.14 Result: Destroyed by Autobeam Turret with Autobeam Performance ------------- Evolutions (0) 0 Regions Visited (2) 400 Robots Destroyed (38) 190 Value Destroyed (973) 973 Prototype IDs (12) 240 Alien Tech Used (0) 0 Bonus (0) 0 TOTAL SCORE: 1803 Bonus ------- None Cogmind --------- Core Integrity 0/250 Matter 163/300 Energy 246/250 System Corruption 1% Temperature Cool (8) Movement Treading (160) Location -10/Subcaves Parts ------- > --- POWER (1) -------- Ion Engine > --- PROPULSION (2) --- Light Treads Light Treads > --- UTILITY (2) ------ Large Storage Unit Makeshift Light Armor Plating > --- WEAPON (2) ------- Autogun Autogun > --- INVENTORY (15) --- Light Treads Disposable Heat Sink Subdweller Optics Improved Medium Laser Subdweller Laser Subdweller Laser Subdweller Laser Powered Cannon Autogun Subdweller Machine Gun Grenade Launcher Subdweller Shrapnel Launcher Makeshift Axe Peak State ------------ > --- POWER ------------ Ion Engine > --- PROPULSION ------- Light Treads Spiked Treads > --- UTILITY ---------- Large Storage Unit Makeshift Light Armor Plating > --- WEAPON ----------- Autogun Makeshift Axe > --- INVENTORY -------- Light Treads Light Treads Disposable Heat Sink Subdweller Optics Improved Medium Laser Improved Medium Laser Subdweller Laser Subdweller Laser Powered Cannon Autogun Autogun Subdweller Machine Gun Grenade Launcher Subdweller Shrapnel Launcher [Rating: 18] Favorites ----------- Power Light Ion Engine Engine Light Ion Engine Propulsion Light Treads Treads Light Treads Utility Large Storage Unit Device Improved Heat Sink Storage Large Storage Unit Protection Makeshift Light Armor Plating Weapon Improved Medium Laser Energy Gun Improved Medium Laser Ballistic Gun Autogun Launcher Grenade Launcher Special Weapon Plasma Cutter Slashing Weapon Makeshift Axe Build | -11 -10 -10 ------- Run | Yrd Mat Sub Slots Evolved . | . . . Power . | . . . Propulsion . | . . . Utility . | . . . Weapon . | . . . Parts Attached 51 | 6 14 31 Power 3 | 1 . 2 Engine 3 | 1 . 2 Core . | . . . Reactor . | . . . Propulsion 8 | 2 . 6 Treads 8 | 2 . 6 Leg . | . . . Wheel . | . . . Hover . | . . . Flight . | . . . Utility 7 | 1 4 2 Device 3 | . 2 1 Storage 3 | 1 2 . Processor . | . . . Hackware . | . . . Protection 1 | . . 1 Artifact . | . . . Weapon 33 | 2 10 21 Energy Gun 10 | . 4 6 Energy Cannon . | . . . Ballistic Gun 14 | 2 3 9 Ballistic Cannon . | . . . Launcher 3 | . 1 2 Special Weapon 2 | . 2 . Impact Weapon . | . . . Slashing Weapon 4 | . . 4 Piercing Weapon . | . . . Special Melee Weapon . | . . . Unidentified Prototypes 1 | . 1 . Parts Lost 3 | . . 3 Power 1 | . . 1 Propulsion 1 | . . 1 Utility 1 | . . 1 Weapon . | . . . Highest Loss Streak 1 | . . 1 To Critical Strikes . | . . . Average Slot Usage (%) 99 | . 99 99 Engine 13 | . 14 13 Treads 28 | . 28 28 Device 10 | . 13 8 Storage 14 | . 14 14 Protection 3 | . . 5 Energy Gun 14 | . 23 8 Ballistic Gun 7 | . 1 10 Special Weapon 1 | . 2 . Slashing Weapon 4 | . . 7 Peak Build Rating 18 | 6 14 18 Average Rating 14 | 5 13 15 On Entrance 6 | . 6 13 Naked Turns . | . . . Heaviest Build 35 | 12 30 35 Greatest Support 40 | 40 40 40 Greatest Overweight (x) . | . . . Average Overweight (x) . | . . . Largest Inventory Capacity 15 | 8 15 15 Average Capacity 14 | 7 13 15 Most Carried 15 | 4 12 15 Average Carried 12 | 2 9 14 Final Capacity 15 | 8 15 15 Final Carried 14 | 4 12 14 Class Distribution -------------------- 100% | Mutant Dominant Class ---------------- Mutant | -10/Materials Mutant | -10/Subcaves Resources | -11 -10 -10 ----------- Run | Yrd Mat Sub Matter Collected 948 | 281 156 511 Remotely . | . . . Salvage Created 1455 | 98 586 771 Parts 97 | 3 36 58 Haulers Intercepted 2 | . 2 . Recyclers Shooed . | . . . Parts Field Recycled . | . . . Retrieved Matter . | . . . Parts Self-Destructed 16 | . . 16 Prevented . | . . . Kills | -11 -10 -10 ------- Run | Yrd Mat Sub Combat Hostiles Destroyed 31 | . 14 17 Melee 1 | . . 1 Guns 25 | . 14 11 AOE 4 | . . 4 Classes Destroyed 9 | 2 4 3 Tunneler 2 | 1 1 . Hauler 2 | . 2 . Recycler 1 | 1 . . Operator 1 | . 1 . Turret 1 | . . 1 Swarmer 11 | . 6 5 Grunt 8 | . 8 . Sentry 1 | . . 1 Subdweller 11 | . . 11 Best Kill Streak 4 | 2 4 4 Combat Bots Only 4 | . 3 4 Max Kills in Single Turn 2 | 1 2 2 Gunslinging 1 | . 1 . Exploded 2 | . . 2 Melee 1 | . . 1 Uniques/NPCs Destroyed . | . . . Combat | -11 -10 -10 -------- Run | Yrd Mat Sub Hostile Shots Fired 187 | . 43 144 Missed 77 | . 14 63 Damage Taken 1589 | . 316 1273 Core 257 | . 51 206 Absorbed by Shields . | . . . Core Remaining (%) 100 | 100 . . Volleys Fired 111 | 4 48 59 Largest 2 | 2 2 2 Hottest 112 | 40 112 112 Shots Fired 208 | 8 89 111 Gun 198 | 8 82 108 Cannon . | . . . Launcher 5 | . 2 3 Special 5 | . 5 . Kinetic 71 | 8 6 57 Thermal 132 | . 81 51 Explosive 5 | . 2 3 Electromagnetic . | . . . Robot Hit Streak 21 | 3 18 21 Robot Miss Streak 4 | 1 4 2 Penetration Max . | . . . Secondary Targets 4 | . 3 1 Max Gunslinging Chain 1 | . 1 1 Shots Hit Robots 149 | 6 49 94 Core Hits 54 | 3 20 31 Critical Kills . | . . . Critical Parts Destroyed . | . . . Critical Strikes 4 | . 1 3 Burn 4 | . 1 3 Melee Attacks 60 | . . 60 Impact . | . . . Slashing 60 | . . 60 Piercing . | . . . Sneak Attacks 1 | . . 1 Combat Hostiles . | . . . Follow-up Attacks . | . . . Damage Inflicted 2968 | 79 834 2055 Guns 2096 | 76 831 1189 Cannons . | . . . Explosions 241 | . . 241 Melee 625 | . . 625 Ramming 6 | 3 3 . Kinetic 751 | 76 34 641 Thermal 1345 | . 797 548 Explosive 241 | . . 241 Electromagnetic . | . . . Impact . | . . . Slashing 625 | . . 625 Piercing . | . . . Highest Corruption 1 | . 1 1 Average Corruption 1 | . 1 1 Corruption Purged . | . . . Corruption Blocked . | . . . Effects 38 | . 12 26 Message Errors 8 | . 2 6 Matter Fused 9 | . 2 7 Heat Flow Errors 7 | . 4 3 Energy Discharges 4 | . 1 3 Parts Fused 1 | . 1 . Data Loss (minor) 6 | . 1 5 Data Loss (major) 1 | . 1 . Misfires 1 | . . 1 Weapon Failures 1 | . . 1 Overload Shots . | . . . Overflow Damage 24 | . . 24 Projectiles . | . . . Explosions 24 | . . 24 Melee . | . . . Knockbacks . | . . . Impact . | . . . Kinetic . | . . . Secondary . | . . . Self-Inflicted Damage 61 | . . 61 Shots 3 | . . 3 Rammed 3 | 1 2 . Targets Rammed 4 | 2 2 . Kicked . | . . . Crushed 1 | 1 . . Highest Temperature 199 | . 199 169 Average Temperature 38 | . 36 50 Received Heat Transfer 447 | . 105 342 Siege Activations . | . . . Robots Corrupted . | . . . Combat Hostiles . | . . . Parts Fried . | . . . Impact Corruptions . | . . . Robots Melted 1 | . . 1 Combat Hostiles 1 | . . 1 Parts Melted 7 | . 4 3 Heat Transferred 3219 | . 1813 1406 Parts Sabotaged . | . . . Parts Stolen . | . . . Parts Stripped . | . . . Power Chain Reactions . | . . . Alert | -11 -10 -10 ------- Run | Yrd Mat Sub Peak Influence 233 | 10 233 . Initial 6 | . 6 . Average 52 | 3 56 . Maximum Alert Level 1 | . 1 . Low Security (%) 98 | 100 98 . Level 1 1 | . 1 . Level 2 . | . . . Level 3 . | . . . Level 4 . | . . . Level 5 . | . . . High Security . | . . . Max Security . | . . . Squads Dispatched 1 | . 1 . Investigation . | . . . Extermination . | . . . Reinforcement 1 | . 1 . Assault . | . . . Garrison . | . . . Intercept . | . . . Searches Triggered . | . . . Construction Impeded . | . . . Haulers Reinforced . | . . . Active Scanning Responses . | . . . Cargo Convoy Interrupts . | . . . Stealth | -11 -10 -10 --------- Run | Yrd Mat Sub Distress Signals . | . . . Communications Jammed . | . . . Distress Signals . | . . . Times Spotted 44 | . 20 24 Peak Tracking Total 6 | . 5 6 Tactical Retreats 2 | . . 2 Traps | -11 -10 -10 ------- Run | Yrd Mat Sub Traps Triggered 4 | . 1 3 Indirectly . | . . . Trap Hack Attempts . | . . . Triggered . | . . . Disarmed . | . . . Reprogrammed . | . . . Reused . | . . . Traps Extracted . | . . . Installed . | . . . Triggered . | . . . Machines | -11 -10 -10 ---------- Run | Yrd Mat Sub Machines Disabled 3 | . 1 2 Max in Single Turn 1 | . 1 1 Machines Repaired . | . . . Machines Dismantled . | . . . Machines Sabotaged . | . . . Overloaded Fab Kills . | . . . Hacking | -11 -10 -10 --------- Run | Yrd Mat Sub Machines Accessed 9 | . 6 3 Terminals 6 | . 6 . Fabricators . | . . . Repair Stations . | . . . Recycling Units . | . . . Scanalyzers . | . . . Garrison Access . | . . . Total Hacks 22 | . 18 4 Successful 15 | . 11 4 Failed 6 | . 6 . Catastrophic . | . . . Database Lockouts 1 | . 1 . Manual 13 | . 13 . Terminals 18 | . 18 . Fabricators . | . . . Repair Stations . | . . . Recycling Units . | . . . Scanalyzers . | . . . Garrison Access . | . . . Terminal Hacks 8 | . 4 4 Record 1 | . . 1 Robot Analysis 1 | . 1 . Open Door 1 | . . 1 Branch Access Points 1 | . 1 . Terminal Index 1 | . 1 . Locate Traps 1 | . 1 . Derelict Proto ID Bank 1 | . . 1 Release Object 1 | . . 1 Fabricator Hacks . | . . . Repair Station Hacks . | . . . Recycling Unit Hacks . | . . . Scanalyzer . | . . . Garrison Access Hacks . | . . . Unauthorized Hacks 7 | . 7 . Terminals 7 | . 7 . Botnet 1 | . 1 . Skim 6 | . 6 . Fabricators . | . . . Repair Stations . | . . . Recycling Units . | . . . Scanalyzers . | . . . Garrison Access . | . . . Data Cores Recovered 1 | . 1 . Used . | . . . Hacking Detections 4 | . 4 . Full Trace Events . | . . . Feedback Events . | . . . Feedback Blocked . | . . . Robot Schematics Acquired . | . . . Robots Built . | . . . Authchips . | . . . Time . | . . . Total Robot Build Rating . | . . . Part Schematics Acquired . | . . . Parts Built . | . . . Authchips . | . . . Time . | . . . Total Part Build Rating . | . . . Parts Repaired . | . . . Time . | . . . Parts Recycled . | . . . Recycled Matter . | . . . Retrieved Matter . | . . . Retrieved Components . | . . . Parts Scanalyzed . | . . . Part Schematics Acquired . | . . . Parts Damaged . | . . . Bothacking | -11 -10 -10 ------------ Run | Yrd Mat Sub Used RIF Installer . | . . . Robots Hacked . | . . . Non-combat . | . . . Combat . | . . . Robot Hacks Applied . | . . . Relay Couplers Released . | . . . Fabnet Peak Effective % . | . . . Robots Rewired . | . . . Allies Hacked . | . . . Hacks Repelled . | . . . Allies | -11 -10 -10 -------- Run | Yrd Mat Sub Total Allies . | . . . Largest Group . | . . . Highest-Rated Group . | . . . Highest-Rated Ally . | . . . Total Orders . | . . . Ally Attacks . | . . . Total Damage . | . . . Kills . | . . . Allies Corrupted . | . . . Allies Melted . | . . . Intel | -11 -10 -10 ------- Run | Yrd Mat Sub Robot Analysis Total 1 | . 1 . Derelict Logs Recovered 1 | . . 1 Drone Launches . | . . . Drone Recoveries . | . . . Exploration | -11 -10 -10 ------------- Run | Yrd Mat Sub Turns Passed 4686 | 110 1793 2783 Spaces Moved 2136 | 54 585 1497 Core 3 | 3 . . Treads 2133 | 51 585 1497 Legs . | . . . Wheels . | . . . Hover . | . . . Flight . | . . . Fastest Speed 50 | 50 160 160 Average Speed 159 | 153 160 160 Slowest Speed 160 | 160 160 160 Overloaded Moves . | . . . Propulsion Burnouts . | . . . Robots Hopped . | . . . Cave-ins Triggered . | . . . Exploration Rate (%) 52 | 6 78 74 Regions Visited 2 Branch Regions 1 Pre-discovered Areas 1 | . . 1 Known Exits Taken 1 | . 1 . Unknown Exits Taken 1 | 1 . . Scrap Searched 6 | . . 6 Spaces Dug 52 | . 11 41 Terrain Destroyed 59 | . 11 48 Melee 31 | . . 31 Projectile . | . . . AOE 28 | . 11 17 Terrain Rammed . | . . . Walls Destroyed . | . . . Machines Disabled . | . . . Actions | -11 -10 -10 --------- Run | Yrd Mat Sub Total 3134 | 69 1345 1720 Wait 720 | . 675 45 Move 2134 | 53 584 1497 Hop . | . . . Pick Up 29 | 4 13 12 Fast Attach 9 | 6 1 2 Attach 5 | . 1 4 Detach . | . . . Swap 37 | . 12 25 Drop 23 | . 8 15 Fire 111 | 4 48 59 Melee 60 | . . 60 Ram . | . . . Kick . | . . . Crush 4 | 2 2 . Escape Stasis . | . . . Rewire . | . . . Trap . | . . . Miscellaneous 2 | . 1 1 Route ------- -11/Scrapyard -10/Materials (discovered 5 exits: *Mat x3 / *Min / *Sub) -10/Subcaves (discovered 3 exits: *Mat x2 / [*Rec]) History --------- Turn | Location | Event 25 | -11/Scrapyard | Discovered new exit (range 16) 111 | -11/Scrapyard | Entered Materials 316 | -10/Materials | Build established: Mutant 331 | -10/Materials | Discovered new exit (range 12) 336 | -10/Materials | Central database locked down 627 | -10/Materials | Identified exit to Mines 695 | -10/Materials | Discovered new exit (range 4) 756 | -10/Materials | Discovered new exit (range 15) 878 | -10/Materials | Identified exit to Materials 943 | -10/Materials | Learned 4 Recycling zone layouts 1043 | -10/Materials | Learned 2 Storage zone layouts 1081 | -10/Materials | Learned location of 1 exit from Recycling 1109 | -10/Materials | Learned 2 Storage zone layouts 1126 | -10/Materials | Identified exit to Subcaves 1192 | -10/Materials | Learned 4 Subcaves zone layouts 1241 | -10/Materials | Learned 4 Recycling zone layouts 1301 | -10/Materials | Learned 4 Materials zone layouts 1904 | -10/Materials | Entered Subcaves 1905 | -10/Subcaves | Identified exit to Materials 2583 | -10/Subcaves | Disturbed a concealed Subdweller 3426 | -10/Subcaves | Learned location of Zion (-7) 3426 | -10/Subcaves | Met a Zionite searching for "candidates" 3426 | -10/Subcaves | Core integrity fell below 50% 3508 | -10/Subcaves | Disturbed a concealed Subdweller 3753 | -10/Subcaves | Visited 4L-MR0's lab 3761 | -10/Subcaves | Learned 2 Materials zone layouts 3776 | -10/Subcaves | Found Powered Cannon 4061 | -10/Subcaves | Core integrity fell below 20% 4142 | -10/Subcaves | Released subatomizers from SUBCON Basin 4636 | -10/Subcaves | Discovered new exit (range 15) 4687 | -10/Subcaves | Destroyed by Autobeam Turret with Autobeam Last Messages --------------- 04580_ 20-GWF(R) destroyed. 04599_ 6QPKSDFM7UYL6ZNWODY/MWY 04617_ Acquired 14 matter. 04636_ EXIT=FOUND 04648_ Destroyed Flight Unit. 04648_ S-10 Pest destroyed. 04652_ Flight Unit fries itself beyond repair. 04655_ S-10 Pest destroyed. 04658_ Lgt. Ion Engine fries itself beyond repair. 04658_ Destroyed Lgt. Assault Rifle. 04658_ S-10 Pest destroyed. 04659_ Flight Unit fries itself beyond repair. 04661_ Lgt. Assault Rifle fries itself beyond repair. 04662_ Spk. Treads destroyed. 04663_ Lgt. Ion Engine fries itself beyond repair. 04665_ Lgt. Assault Rifle fries itself beyond repair. 04665_ System corrupted: Autogun jammed. 04671_ Lgt. Ion Engine fries itself beyond repair. 04671_ The unstable cave ceiling collapses. 04683_ Autobeam Turret destroyed. Map ----- +----------------------------------------------------+ | ?????????????????????????????????????????????????? | | ?????????????????????????????????????????????????? | | ?????????????????????????????????????????????????? | | ?????????????????????????????????????????????????? | | ?????????????????????????????????????????????????? | | ?????????????????????????????????????????????????? | | ?????????????????????????????????????????????????? | | ?????????????????????????????????????????????????? | | ??????????????????????##?????????????????????????? | | ??????????????????????#